[Event "Titled Tuesday Blitz August 1 Early 2023"]
[White "Fiorito, Francisco"]
[Black "Zeynalli, Rashad"]
[WhiteFideId "180165"]
[BlackFideId "13403320"]
[WhiteElo "2550"]
[BlackElo "2699"]
[Result "1/2-1/2"]
[Round "11"]
[TimeControl "180+1"]
[Date "2023.08.01"]
[WhiteClock "0:00:09"]
[BlackClock "0:00:30"]
[Board "48"]

1. e4 {[%clk 0:02:24]}  c6 {[%clk 0:02:57]} 2. d3 {[%clk 0:02:21]}  d5 {[%clk 0:02:58]} 3. Qe2 {[%clk 0:02:22]}  g6 {[%clk 0:02:53]} 4. f4 {[%clk 0:02:22]}  Bg7 {[%clk 0:02:51]} 5. Nf3 {[%clk 0:02:23]}  Bg4 {[%clk 0:02:41]} 6. g3 {[%clk 0:02:20]}  Qb6 {[%clk 0:02:40]} 7. c3 {[%clk 0:02:18]}  dxe4 {[%clk 0:02:33]} 8. dxe4 {[%clk 0:02:18]}  Nf6 {[%clk 0:02:34]} 9. Bg2 {[%clk 0:02:18]}  O-O {[%clk 0:02:32]} 10. Be3 {[%clk 0:02:12]}  Qa6 {[%clk 0:02:31]} 11. Nbd2 {[%clk 0:02:07]}  Rd8 {[%clk 0:02:29]} 12. h3 {[%clk 0:02:04]}  Be6 {[%clk 0:02:26]} 13. Nd4 {[%clk 0:02:00]}  Bd7 {[%clk 0:02:21]} 14. g4 {[%clk 0:01:45]}  Qxe2+ {[%clk 0:02:09]} 15. Kxe2 {[%clk 0:01:44]}  Na6 {[%clk 0:02:10]} 16. Nc4 {[%clk 0:01:40]}  Nc5 {[%clk 0:02:05]} 17. e5 {[%clk 0:01:32]}  Nd5 {[%clk 0:02:05]} 18. Bd2 {[%clk 0:01:32]}  Ne6 {[%clk 0:02:04]} 19. Nxe6 {[%clk 0:01:30]}  Bxe6 {[%clk 0:02:05]} 20. Na5 {[%clk 0:01:23]}  Rd7 {[%clk 0:01:55]} 21. Nb3 {[%clk 0:01:21]}  Rc7 {[%clk 0:01:41]} 22. Rad1 {[%clk 0:01:17]}  b6 {[%clk 0:01:38]} 23. Nd4 {[%clk 0:01:17]}  g5 {[%clk 0:01:27]} 24. f5 {[%clk 0:01:05]}  Bd7 {[%clk 0:01:23]} 25. Nf3 {[%clk 0:00:51]}  Nf4+ {[%clk 0:01:23]} 26. Bxf4 {[%clk 0:00:51]}  gxf4 {[%clk 0:01:24]} 27. Rd4 {[%clk 0:00:44]}  c5 {[%clk 0:01:22]} 28. Rxf4 {[%clk 0:00:41]}  Bb5+ {[%clk 0:01:20]} 29. c4 {[%clk 0:00:40]}  Bc6 {[%clk 0:01:19]} 30. f6 {[%clk 0:00:34]}  exf6 {[%clk 0:01:16]} 31. exf6 {[%clk 0:00:34]}  Bh6 {[%clk 0:01:13]} 32. g5 {[%clk 0:00:30]}  Bf8 {[%clk 0:01:12]} 33. Nh4 {[%clk 0:00:12]}  Re8+ {[%clk 0:01:09]} 34. Kf2 {[%clk 0:00:12]}  Bxg2 {[%clk 0:01:08]} 35. Nxg2 {[%clk 0:00:12]}  Rd7 {[%clk 0:01:09]} 36. b3 {[%clk 0:00:03]}  Rd2+ {[%clk 0:01:07]} 37. Kf3 {[%clk 0:00:04]}  Rxa2 {[%clk 0:01:06]} 38. Re1 {[%clk 0:00:02]}  Rd8 {[%clk 0:01:01]} 39. Rfe4 {[%clk 0:00:01]}  Rb2 {[%clk 0:00:59]} 40. R4e3 {[%clk 0:00:01]}  Rdd2 {[%clk 0:00:49]} 41. Nf4 {[%clk 0:00:02]}  Rf2+ {[%clk 0:00:49]} 42. Ke4 {[%clk 0:00:02]}  a6 {[%clk 0:00:44]} 43. Nd3 {[%clk 0:00:03]}  h6 {[%clk 0:00:40]} 44. Nxb2 {[%clk 0:00:02]}  Rxb2 {[%clk 0:00:40]} 45. h4 {[%clk 0:00:03]}  Kh7 {[%clk 0:00:40]} 46. Kf5 {[%clk 0:00:02]}  Rf2+ {[%clk 0:00:39]} 47. Kg4 {[%clk 0:00:02]}  hxg5 {[%clk 0:00:38]} 48. hxg5 {[%clk 0:00:03]}  Kg6 {[%clk 0:00:39]} 49. Rh1 {[%clk 0:00:03]}  Rg2+ {[%clk 0:00:38]} 50. Rg3 {[%clk 0:00:03]}  Rxg3+ {[%clk 0:00:38]} 51. Kxg3 {[%clk 0:00:04]}  Kxg5 {[%clk 0:00:38]} 52. Rf1 {[%clk 0:00:05]}  Bd6+ {[%clk 0:00:38]} 53. Kg2 {[%clk 0:00:05]}  Be5 {[%clk 0:00:39]} 54. Rd1 {[%clk 0:00:04]}  Kxf6 {[%clk 0:00:36]} 55. Kf3 {[%clk 0:00:04]}  Ke6 {[%clk 0:00:36]} 56. Rh1 {[%clk 0:00:03]}  b5 {[%clk 0:00:36]} 57. Ke4 {[%clk 0:00:02]}  f5+ {[%clk 0:00:35]} 58. Ke3 {[%clk 0:00:03]}  Bd4+ {[%clk 0:00:34]} 59. Kf3 {[%clk 0:00:03]}  Ke5 {[%clk 0:00:32]} 60. Rh8 {[%clk 0:00:01]}  Bc3 {[%clk 0:00:28]} 61. Rd8 {[%clk 0:00:01]}  bxc4 {[%clk 0:00:24]} 62. bxc4 {[%clk 0:00:02]}  Bb4 {[%clk 0:00:24]} 63. Rd5+ {[%clk 0:00:02]}  Ke6 {[%clk 0:00:24]} 64. Kf4 {[%clk 0:00:02]}  a5 {[%clk 0:00:24]} 65. Rxf5 {[%clk 0:00:03]}  a4 {[%clk 0:00:22]} 66. Rf8 {[%clk 0:00:03]}  a3 {[%clk 0:00:21]} 67. Ra8 {[%clk 0:00:04]}  Kd6 {[%clk 0:00:22]} 68. Ke4 {[%clk 0:00:04]}  Kc6 {[%clk 0:00:22]} 69. Kd3 {[%clk 0:00:04]}  Kd6 {[%clk 0:00:23]} 70. Kc2 {[%clk 0:00:04]}  Ke5 {[%clk 0:00:23]} 71. Kb3 {[%clk 0:00:05]}  Kd4 {[%clk 0:00:24]} 72. Rd8+ {[%clk 0:00:05]}  Ke3 {[%clk 0:00:24]} 73. Rd1 {[%clk 0:00:04]}  Ke4 {[%clk 0:00:24]} 74. Rh1 {[%clk 0:00:04]}  Kd4 {[%clk 0:00:24]} 75. Rh4+ {[%clk 0:00:03]}  Kd3 {[%clk 0:00:24]} 76. Rg4 {[%clk 0:00:03]}  Ke3 {[%clk 0:00:24]} 77. Rg5 {[%clk 0:00:03]}  Kf4 {[%clk 0:00:24]} 78. Rd5 {[%clk 0:00:03]}  Ke4 {[%clk 0:00:25]} 79. Ka2 {[%clk 0:00:03]}  Ke3 {[%clk 0:00:25]} 80. Rd8 {[%clk 0:00:02]}  Ke4 {[%clk 0:00:25]} 81. Kb3 {[%clk 0:00:03]}  Ke3 {[%clk 0:00:25]} 82. Ra8 {[%clk 0:00:03]}  Kd4 {[%clk 0:00:26]} 83. Ra6 {[%clk 0:00:04]}  Kd3 {[%clk 0:00:26]} 84. Rd6+ {[%clk 0:00:03]}  Ke2 {[%clk 0:00:26]} 85. Rd8 {[%clk 0:00:04]}  Ke1 {[%clk 0:00:26]} 86. Ra8 {[%clk 0:00:03]}  Kd1 {[%clk 0:00:26]} 87. Rxa3 {[%clk 0:00:03]}  Bxa3 {[%clk 0:00:24]} 88. Kxa3 {[%clk 0:00:04]}  Kc2 {[%clk 0:00:24]} 89. Ka2 {[%clk 0:00:01]}  Kc3 {[%clk 0:00:24]} 90. Kb1 {[%clk 0:00:02]}  Kb3 {[%clk 0:00:23]} 91. Kc1 {[%clk 0:00:02]}  Kc3 {[%clk 0:00:24]} 92. Kb1 {[%clk 0:00:03]}  Kd3 {[%clk 0:00:23]} 93. Kc1 {[%clk 0:00:03]}  Kd4 {[%clk 0:00:23]} 94. Kd2 {[%clk 0:00:03]}  Kxc4 {[%clk 0:00:24]} 95. Kc2 {[%clk 0:00:04]}  Kb4 {[%clk 0:00:25]} 96. Kb2 {[%clk 0:00:05]}  Kc4 {[%clk 0:00:25]} 97. Kc2 {[%clk 0:00:05]}  Kd4 {[%clk 0:00:26]} 98. Kd2 {[%clk 0:00:06]}  c4 {[%clk 0:00:27]} 99. Kc2 {[%clk 0:00:06]}  c3 {[%clk 0:00:28]} 100. Kc1 {[%clk 0:00:07]}  Kc4 {[%clk 0:00:29]} 101. Kc2 {[%clk 0:00:07]}  Kb4 {[%clk 0:00:29]} 102. Kc1 {[%clk 0:00:08]}  Kb3 {[%clk 0:00:30]} 103. Kb1 {[%clk 0:00:08]}  c2+ {[%clk 0:00:30]} 104. Kc1 {[%clk 0:00:09]}  Kc3 {[%clk 0:00:30]} 1/2-1/2


[Site "https://www.chess.com"]

[Event "Titled Tuesday Blitz August 1 Early 2023"]
[White "Rosen, Eric"]
[Black "Thecourseoisildur"]
[WhiteFideId "2032562"]
[WhiteElo "2694"]
[BlackElo "2546"]
[Result "1/2-1/2"]
[Round "11"]
[TimeControl "180+1"]
[Date "2023.08.01"]
[WhiteClock "0:00:05"]
[BlackClock "0:00:06"]
[Board "49"]

1. Nf3 {[%clk 0:03:00]}  Nf6 {[%clk 0:03:00]} 2. b3 {[%clk 0:03:00]}  g6 {[%clk 0:03:00]} 3. Bb2 {[%clk 0:02:59]}  Bg7 {[%clk 0:03:01]} 4. d4 {[%clk 0:02:59]}  d5 {[%clk 0:02:59]} 5. e3 {[%clk 0:02:54]}  O-O {[%clk 0:02:59]} 6. Be2 {[%clk 0:02:52]}  c5 {[%clk 0:02:57]} 7. O-O {[%clk 0:02:34]}  Ne4 {[%clk 0:02:46]} 8. Nbd2 {[%clk 0:02:29]}  Nc6 {[%clk 0:02:44]} 9. c4 {[%clk 0:02:19]}  Bg4 {[%clk 0:02:39]} 10. cxd5 {[%clk 0:02:15]}  Qxd5 {[%clk 0:02:23]} 11. h3 {[%clk 0:01:40]}  Bf5 {[%clk 0:02:04]} 12. g4 {[%clk 0:01:00]}  Nxd2 {[%clk 0:01:50]} 13. Qxd2 {[%clk 0:00:49]}  Be4 {[%clk 0:01:40]} 14. Bc4 {[%clk 0:00:49]}  Qd7 {[%clk 0:01:36]} 15. Ng5 {[%clk 0:00:49]}  Bd5 {[%clk 0:01:32]} 16. dxc5 {[%clk 0:00:47]}  Rad8 {[%clk 0:01:13]} 17. Bxg7 {[%clk 0:00:45]}  Kxg7 {[%clk 0:01:12]} 18. Rad1 {[%clk 0:00:45]}  e6 {[%clk 0:00:40]} 19. e4 {[%clk 0:00:45]}  Bxc4 {[%clk 0:00:21]} 20. Qc3+ {[%clk 0:00:36]}  Nd4 {[%clk 0:00:18]} 21. Qxc4 {[%clk 0:00:22]}  e5 {[%clk 0:00:18]} 22. f4 {[%clk 0:00:17]}  h6 {[%clk 0:00:16]} 23. c6 {[%clk 0:00:03]}  bxc6 {[%clk 0:00:15]} 24. fxe5 {[%clk 0:00:04]}  hxg5 {[%clk 0:00:14]} 25. e6 {[%clk 0:00:04]}  Nf3+ {[%clk 0:00:06]} 26. Kf2 {[%clk 0:00:03]}  Qxe6 {[%clk 0:00:06]} 27. Kxf3 {[%clk 0:00:02]}  Qf6+ {[%clk 0:00:05]} 28. Kg2 {[%clk 0:00:01]}  Qb2+ {[%clk 0:00:06]} 29. Rf2 {[%clk 0:00:02]}  Qe5 {[%clk 0:00:06]} 30. Rdf1 {[%clk 0:00:01]}  f6 {[%clk 0:00:05]} 31. a4 {[%clk 0:00:02]}  Rd4 {[%clk 0:00:03]} 32. Qxc6 {[%clk 0:00:02]}  Qxe4+ {[%clk 0:00:04]} 33. Qxe4 {[%clk 0:00:03]}  Rxe4 {[%clk 0:00:05]} 34. Rf3 {[%clk 0:00:03]}  Re2+ {[%clk 0:00:04]} 35. Kg3 {[%clk 0:00:03]}  Rb2 {[%clk 0:00:01]} 36. Rc3 {[%clk 0:00:03]}  Rd8 {[%clk 0:00:02]} 37. Rf2 {[%clk 0:00:02]}  Rdd2 {[%clk 0:00:01]} 38. Rxd2 {[%clk 0:00:02]}  Rxd2 {[%clk 0:00:02]} 39. Rc7+ {[%clk 0:00:03]}  Kh6 {[%clk 0:00:02]} 40. Rxa7 {[%clk 0:00:01]}  Rd3+ {[%clk 0:00:03]} 41. Kg2 {[%clk 0:00:02]}  Rxb3 {[%clk 0:00:04]} 42. Ra6 {[%clk 0:00:02]}  Kg7 {[%clk 0:00:03]} 43. a5 {[%clk 0:00:03]}  Ra3 {[%clk 0:00:03]} 44. Kh2 {[%clk 0:00:02]}  f5 {[%clk 0:00:03]} 45. gxf5 {[%clk 0:00:02]}  gxf5 {[%clk 0:00:03]} 46. Ra8 {[%clk 0:00:02]}  Kf6 {[%clk 0:00:04]} 47. a6 {[%clk 0:00:02]}  Kg7 {[%clk 0:00:03]} 48. Kg2 {[%clk 0:00:02]}  Rb3 {[%clk 0:00:02]} 49. Kh2 {[%clk 0:00:02]}  Ra3 {[%clk 0:00:03]} 50. Ra7+ {[%clk 0:00:02]}  Kg6 {[%clk 0:00:03]} 51. Kg2 {[%clk 0:00:03]}  Kf6 {[%clk 0:00:03]} 52. Ra8 {[%clk 0:00:03]}  Kg7 {[%clk 0:00:04]} 53. Kh2 {[%clk 0:00:03]}  Kh7 {[%clk 0:00:04]} 54. Kg2 {[%clk 0:00:03]}  Kg7 {[%clk 0:00:05]} 55. Ra7+ {[%clk 0:00:04]}  Kg6 {[%clk 0:00:05]} 56. Kh2 {[%clk 0:00:05]}  Kf6 {[%clk 0:00:05]} 57. Ra8 {[%clk 0:00:05]}  Kg7 {[%clk 0:00:06]} 1/2-1/2


[Site "https://www.chess.com"]

[Event "Titled Tuesday Blitz August 1 Early 2023"]
[White "Womacka, Mathias"]
[Black "only_strong_moves"]
[WhiteFideId "4611390"]
[WhiteElo "2545"]
[BlackElo "2692"]
[Result "0-1"]
[Round "11"]
[TimeControl "180+1"]
[Date "2023.08.01"]
[WhiteClock "0:00:01"]
[BlackClock "0:00:08"]
[Board "50"]

1. e4 {[%clk 0:03:00]}  e5 {[%clk 0:03:00]} 2. Nf3 {[%clk 0:02:59]}  Nc6 {[%clk 0:03:00]} 3. Bb5 {[%clk 0:02:59]}  Nf6 {[%clk 0:03:00]} 4. O-O {[%clk 0:02:58]}  Nxe4 {[%clk 0:03:00]} 5. Re1 {[%clk 0:02:58]}  Nd6 {[%clk 0:03:00]} 6. Nxe5 {[%clk 0:02:55]}  Be7 {[%clk 0:03:00]} 7. Bf1 {[%clk 0:02:54]}  Nxe5 {[%clk 0:02:59]} 8. Rxe5 {[%clk 0:02:55]}  O-O {[%clk 0:02:59]} 9. d4 {[%clk 0:02:55]}  Bf6 {[%clk 0:02:58]} 10. Re1 {[%clk 0:02:56]}  Nf5 {[%clk 0:02:58]} 11. d5 {[%clk 0:02:55]}  d6 {[%clk 0:02:53]} 12. Nd2 {[%clk 0:02:55]}  Bg5 {[%clk 0:02:36]} 13. c3 {[%clk 0:02:43]}  Bd7 {[%clk 0:02:32]} 14. Qb3 {[%clk 0:02:33]}  b6 {[%clk 0:02:24]} 15. Nf3 {[%clk 0:02:26]}  Bxc1 {[%clk 0:02:24]} 16. Raxc1 {[%clk 0:02:27]}  Qf6 {[%clk 0:02:07]} 17. Bb5 {[%clk 0:02:17]}  Rad8 {[%clk 0:01:35]} 18. Bxd7 {[%clk 0:02:10]}  Rxd7 {[%clk 0:01:36]} 19. Qa4 {[%clk 0:02:10]}  Re7 {[%clk 0:01:30]} 20. Qxa7 {[%clk 0:02:09]}  Rfe8 {[%clk 0:01:24]} 21. Rxe7 {[%clk 0:02:03]}  Qxe7 {[%clk 0:01:24]} 22. h3 {[%clk 0:02:02]}  Qd7 {[%clk 0:01:20]} 23. Qa6 {[%clk 0:01:53]}  h6 {[%clk 0:01:13]} 24. Qd3 {[%clk 0:01:53]}  g6 {[%clk 0:01:01]} 25. g3 {[%clk 0:01:38]}  Qa4 {[%clk 0:00:50]} 26. a3 {[%clk 0:01:36]}  Qb3 {[%clk 0:00:41]} 27. Qd2 {[%clk 0:01:27]}  Kh7 {[%clk 0:00:37]} 28. Kg2 {[%clk 0:01:25]}  Ng7 {[%clk 0:00:30]} 29. Re1 {[%clk 0:01:17]}  Rxe1 {[%clk 0:00:26]} 30. Nxe1 {[%clk 0:01:18]}  Nf5 {[%clk 0:00:20]} 31. Nf3 {[%clk 0:01:17]}  Qc4 {[%clk 0:00:21]} 32. g4 {[%clk 0:01:09]}  Ne7 {[%clk 0:00:18]} 33. Qd4 {[%clk 0:01:01]}  Qxd5 {[%clk 0:00:18]} 34. Qxd5 {[%clk 0:00:55]}  Nxd5 {[%clk 0:00:19]} 35. Kg3 {[%clk 0:00:55]}  Kg7 {[%clk 0:00:17]} 36. c4 {[%clk 0:00:51]}  Nf6 {[%clk 0:00:16]} 37. Kf4 {[%clk 0:00:48]}  Kf8 {[%clk 0:00:16]} 38. b4 {[%clk 0:00:44]}  Ke7 {[%clk 0:00:15]} 39. Ke3 {[%clk 0:00:41]}  c5 {[%clk 0:00:13]} 40. Nd2 {[%clk 0:00:33]}  Ke6 {[%clk 0:00:11]} 41. Ne4 {[%clk 0:00:32]}  Nd7 {[%clk 0:00:11]} 42. Nc3 {[%clk 0:00:31]}  Ne5 {[%clk 0:00:11]} 43. Nb5 {[%clk 0:00:15]}  Nxc4+ {[%clk 0:00:11]} 44. Kd3 {[%clk 0:00:15]}  d5 {[%clk 0:00:11]} 45. a4 {[%clk 0:00:13]}  cxb4 {[%clk 0:00:09]} 46. Kd4 {[%clk 0:00:14]}  b3 {[%clk 0:00:07]} 47. Nc7+ {[%clk 0:00:13]}  Kd6 {[%clk 0:00:08]} 48. Nxd5 {[%clk 0:00:14]}  b2 {[%clk 0:00:07]} 49. Nc3 {[%clk 0:00:14]}  Na3 {[%clk 0:00:07]} 50. f4 {[%clk 0:00:11]}  b1=Q {[%clk 0:00:07]} 51. Nxb1 {[%clk 0:00:11]}  Nxb1 {[%clk 0:00:08]} 52. Kc4 {[%clk 0:00:11]}  Kc6 {[%clk 0:00:07]} 53. Kd4 {[%clk 0:00:11]}  Nd2 {[%clk 0:00:07]} 54. Ke5 {[%clk 0:00:12]}  Nf3+ {[%clk 0:00:05]} 55. Kf6 {[%clk 0:00:12]}  g5 {[%clk 0:00:06]} 56. f5 {[%clk 0:00:11]}  Kd5 {[%clk 0:00:04]} 57. Kxf7 {[%clk 0:00:10]}  Ng1 {[%clk 0:00:04]} 58. Kg6 {[%clk 0:00:10]}  Nxh3 {[%clk 0:00:04]} 59. f6 {[%clk 0:00:09]}  Nf4+ {[%clk 0:00:05]} 60. Kxh6 {[%clk 0:00:09]}  Ne6 {[%clk 0:00:04]} 61. f7 {[%clk 0:00:06]}  Ke5 {[%clk 0:00:04]} 62. f8=Q {[%clk 0:00:05]}  Nxf8 {[%clk 0:00:04]} 63. Kxg5 {[%clk 0:00:06]}  Ne6+ {[%clk 0:00:04]} 64. Kh6 {[%clk 0:00:06]}  Kf6 {[%clk 0:00:04]} 65. Kh5 {[%clk 0:00:06]}  Nc5 {[%clk 0:00:04]} 66. Kh6 {[%clk 0:00:05]}  Kf7 {[%clk 0:00:03]} 67. g5 {[%clk 0:00:05]}  Kg8 {[%clk 0:00:03]} 68. Kg6 {[%clk 0:00:04]}  Nxa4 {[%clk 0:00:03]} 69. Kf5 {[%clk 0:00:05]}  b5 {[%clk 0:00:03]} 70. Ke5 {[%clk 0:00:05]}  b4 {[%clk 0:00:04]} 71. Kd4 {[%clk 0:00:06]}  b3 {[%clk 0:00:05]} 72. Kd3 {[%clk 0:00:06]}  b2 {[%clk 0:00:05]} 73. Kc2 {[%clk 0:00:06]}  Kg7 {[%clk 0:00:06]} 74. Kb1 {[%clk 0:00:06]}  Kg6 {[%clk 0:00:06]} 75. Ka2 {[%clk 0:00:05]}  Kxg5 {[%clk 0:00:07]} 76. Ka3 {[%clk 0:00:05]}  Kf4 {[%clk 0:00:07]} 77. Kxa4 {[%clk 0:00:06]}  b1=Q {[%clk 0:00:07]} 78. Ka5 {[%clk 0:00:01]}  Ke5 {[%clk 0:00:08]} 0-1


[Site "https://www.chess.com"]

[Event "Titled Tuesday Blitz August 1 Early 2023"]
[White "Ovetchkin, Roman"]
[Black "Kovalevsky, Stanislav"]
[WhiteFideId "4119991"]
[BlackFideId "13508598"]
[WhiteElo "2645"]
[BlackElo "2505"]
[Result "1-0"]
[Round "11"]
[TimeControl "180+1"]
[Date "2023.08.01"]
[WhiteClock "0:00:12"]
[BlackClock "0:00:00"]
[Board "56"]

1. d4 {[%clk 0:03:00]}  d5 {[%clk 0:02:59]} 2. c4 {[%clk 0:03:00]}  c6 {[%clk 0:02:59]} 3. Nf3 {[%clk 0:02:59]}  Nf6 {[%clk 0:02:59]} 4. Qc2 {[%clk 0:02:59]}  a6 {[%clk 0:02:50]} 5. Nbd2 {[%clk 0:02:56]}  Bg4 {[%clk 0:02:46]} 6. Ne5 {[%clk 0:02:41]}  Bh5 {[%clk 0:02:45]} 7. Qb3 {[%clk 0:02:36]}  Qc8 {[%clk 0:02:39]} 8. e3 {[%clk 0:02:23]}  e6 {[%clk 0:02:34]} 9. Ndf3 {[%clk 0:02:09]}  Nbd7 {[%clk 0:02:34]} 10. Be2 {[%clk 0:02:07]}  Nxe5 {[%clk 0:02:33]} 11. Nxe5 {[%clk 0:02:08]}  Bxe2 {[%clk 0:02:33]} 12. Kxe2 {[%clk 0:02:08]}  Bd6 {[%clk 0:02:30]} 13. Nf3 {[%clk 0:02:03]}  O-O {[%clk 0:02:24]} 14. Bd2 {[%clk 0:02:03]}  Re8 {[%clk 0:02:23]} 15. Rhc1 {[%clk 0:02:03]}  Qd7 {[%clk 0:02:22]} 16. Bb4 {[%clk 0:01:56]}  Bc7 {[%clk 0:02:13]} 17. a4 {[%clk 0:01:51]}  e5 {[%clk 0:02:10]} 18. dxe5 {[%clk 0:01:47]}  Bxe5 {[%clk 0:02:10]} 19. Rd1 {[%clk 0:01:42]}  Qg4 {[%clk 0:02:09]} 20. Kf1 {[%clk 0:01:04]}  dxc4 {[%clk 0:01:53]} 21. Qc2 {[%clk 0:00:58]}  Nd5 {[%clk 0:01:40]} 22. Be1 {[%clk 0:00:50]}  Bf6 {[%clk 0:01:33]} 23. h3 {[%clk 0:00:45]}  Qe4 {[%clk 0:01:28]} 24. Qxe4 {[%clk 0:00:45]}  Rxe4 {[%clk 0:01:28]} 25. Nd2 {[%clk 0:00:45]}  Rxe3 {[%clk 0:00:50]} 26. fxe3 {[%clk 0:00:43]}  Nxe3+ {[%clk 0:00:51]} 27. Ke2 {[%clk 0:00:44]}  Re8 {[%clk 0:00:52]} 28. Rab1 {[%clk 0:00:27]}  b5 {[%clk 0:00:23]} 29. Bf2 {[%clk 0:00:26]}  Nxd1+ {[%clk 0:00:18]} 30. Kxd1 {[%clk 0:00:27]}  Bg5 {[%clk 0:00:14]} 31. Nf3 {[%clk 0:00:24]}  Bf4 {[%clk 0:00:13]} 32. Bd4 {[%clk 0:00:20]}  f6 {[%clk 0:00:12]} 33. b3 {[%clk 0:00:20]}  Rd8 {[%clk 0:00:12]} 34. Kc2 {[%clk 0:00:19]}  Re8 {[%clk 0:00:11]} 35. bxc4 {[%clk 0:00:19]}  Re2+ {[%clk 0:00:10]} 36. Kd3 {[%clk 0:00:19]}  Rxg2 {[%clk 0:00:10]} 37. cxb5 {[%clk 0:00:19]}  cxb5 {[%clk 0:00:11]} 38. axb5 {[%clk 0:00:18]}  axb5 {[%clk 0:00:12]} 39. Rxb5 {[%clk 0:00:19]}  Rg3 {[%clk 0:00:12]} 40. Ke4 {[%clk 0:00:18]}  Bd6 {[%clk 0:00:08]} 41. h4 {[%clk 0:00:17]}  Kf7 {[%clk 0:00:06]} 42. Rb6 {[%clk 0:00:14]}  Ke6 {[%clk 0:00:05]} 43. Bc5 {[%clk 0:00:13]}  Rg4+ {[%clk 0:00:03]} 44. Kd3 {[%clk 0:00:13]}  Rg3 {[%clk 0:00:00]} 45. Rxd6+ {[%clk 0:00:12]} 1-0


[Site "https://www.chess.com"]

[Event "Titled Tuesday Blitz August 1 Early 2023"]
[White "Pandey Srishti"]
[Black "Vantika Agrawal"]
[WhiteFideId "35093290"]
[BlackFideId "25050389"]
[WhiteElo "2470"]
[BlackElo "2639"]
[Result "1-0"]
[Round "11"]
[TimeControl "180+1"]
[Date "2023.08.01"]
[WhiteClock "0:01:21"]
[BlackClock "0:00:00"]
[Board "58"]

1. e4 {[%clk 0:03:00]}  c5 {[%clk 0:02:50]} 2. Nf3 {[%clk 0:03:00]}  Nc6 {[%clk 0:02:47]} 3. d4 {[%clk 0:02:58]}  cxd4 {[%clk 0:02:47]} 4. Nxd4 {[%clk 0:02:59]}  Nf6 {[%clk 0:02:46]} 5. Nc3 {[%clk 0:02:56]}  e5 {[%clk 0:02:46]} 6. Ndb5 {[%clk 0:02:54]}  d6 {[%clk 0:02:46]} 7. Nd5 {[%clk 0:02:54]}  Nxd5 {[%clk 0:02:45]} 8. exd5 {[%clk 0:02:55]}  Nb8 {[%clk 0:02:44]} 9. a4 {[%clk 0:02:53]}  Be7 {[%clk 0:02:43]} 10. Bd3 {[%clk 0:02:41]}  O-O {[%clk 0:02:38]} 11. O-O {[%clk 0:02:40]}  a6 {[%clk 0:02:32]} 12. Na3 {[%clk 0:02:40]}  f5 {[%clk 0:02:28]} 13. f4 {[%clk 0:02:37]}  Nd7 {[%clk 0:02:18]} 14. Nc4 {[%clk 0:02:34]}  exf4 {[%clk 0:01:30]} 15. Bxf4 {[%clk 0:02:31]}  Nc5 {[%clk 0:01:29]} 16. Kh1 {[%clk 0:02:23]}  g5 {[%clk 0:00:53]} 17. Be3 {[%clk 0:02:18]}  Nxd3 {[%clk 0:00:51]} 18. Qxd3 {[%clk 0:02:13]}  f4 {[%clk 0:00:51]} 19. Bb6 {[%clk 0:02:13]}  Qe8 {[%clk 0:00:48]} 20. Rae1 {[%clk 0:02:08]}  Qf7 {[%clk 0:00:45]} 21. Bc7 {[%clk 0:02:01]}  Bf5 {[%clk 0:00:40]} 22. Qd2 {[%clk 0:02:00]}  Qf6 {[%clk 0:00:29]} 23. Nb6 {[%clk 0:01:57]}  Rae8 {[%clk 0:00:28]} 24. c4 {[%clk 0:01:51]}  Bd8 {[%clk 0:00:21]} 25. Bxd8 {[%clk 0:01:50]}  Rxd8 {[%clk 0:00:22]} 26. a5 {[%clk 0:01:50]}  Rde8 {[%clk 0:00:21]} 27. b4 {[%clk 0:01:50]}  Rxe1 {[%clk 0:00:11]} 28. Rxe1 {[%clk 0:01:51]}  Qf7 {[%clk 0:00:09]} 29. c5 {[%clk 0:01:47]}  Re8 {[%clk 0:00:09]} 30. cxd6 {[%clk 0:01:45]}  g4 {[%clk 0:00:06]} 31. Kg1 {[%clk 0:01:35]}  Rxe1+ {[%clk 0:00:03]} 32. Qxe1 {[%clk 0:01:34]}  Bd7 {[%clk 0:00:01]} 33. Qe5 {[%clk 0:01:29]}  Bb5 {[%clk 0:00:01]} 34. Qg5+ {[%clk 0:01:28]}  Kf8 {[%clk 0:00:01]} 35. Qd8+ {[%clk 0:01:25]}  Kg7 {[%clk 0:00:02]} 36. d7 {[%clk 0:01:23]}  f3 {[%clk 0:00:01]} 37. Qg5+ {[%clk 0:01:21]}  Qg6 {[%clk 0:00:02]} 38. Qxg6+ {[%clk 0:01:21]}  Kxg6 {[%clk 0:00:03]} 39. d8=Q {[%clk 0:01:21]}  f2+ {[%clk 0:00:00]} 40. Kxf2 {[%clk 0:01:21]} 1-0


[Site "https://www.chess.com"]

[Event "Titled Tuesday Blitz August 1 Early 2023"]
[White "Hrbek, Stepan"]
[Black "Perdomo, Carlos Andres"]
[WhiteFideId "393479"]
[BlackFideId "4400852"]
[WhiteElo "2405"]
[BlackElo "2625"]
[Result "1-0"]
[Round "11"]
[TimeControl "180+1"]
[Date "2023.08.01"]
[WhiteClock "0:00:41"]
[BlackClock "0:00:00"]
[Board "59"]

1. e4 {[%clk 0:03:00]}  c5 {[%clk 0:02:59]} 2. Nf3 {[%clk 0:03:00]}  e6 {[%clk 0:02:59]} 3. d4 {[%clk 0:03:00]}  cxd4 {[%clk 0:03:00]} 4. Nxd4 {[%clk 0:03:01]}  Nc6 {[%clk 0:02:59]} 5. Nc3 {[%clk 0:03:01]}  a6 {[%clk 0:02:58]} 6. g3 {[%clk 0:03:00]}  Qc7 {[%clk 0:02:41]} 7. Bg2 {[%clk 0:02:59]}  Nf6 {[%clk 0:02:33]} 8. O-O {[%clk 0:02:58]}  Be7 {[%clk 0:02:30]} 9. Re1 {[%clk 0:02:55]}  d6 {[%clk 0:02:23]} 10. Nxc6 {[%clk 0:02:55]}  bxc6 {[%clk 0:02:21]} 11. e5 {[%clk 0:02:55]}  dxe5 {[%clk 0:02:08]} 12. Rxe5 {[%clk 0:02:55]}  Qxe5 {[%clk 0:01:39]} 13. Bxc6+ {[%clk 0:02:54]}  Bd7 {[%clk 0:01:39]} 14. Bxa8 {[%clk 0:02:53]}  O-O {[%clk 0:01:40]} 15. Bf3 {[%clk 0:02:39]}  Bb4 {[%clk 0:01:29]} 16. Bd2 {[%clk 0:02:34]}  Rc8 {[%clk 0:01:20]} 17. Qe2 {[%clk 0:02:22]}  Qa5 {[%clk 0:01:01]} 18. a3 {[%clk 0:02:10]}  Bb5 {[%clk 0:00:20]} 19. Qe5 {[%clk 0:01:55]}  Be7 {[%clk 0:00:16]} 20. a4 {[%clk 0:01:39]}  Nd7 {[%clk 0:00:12]} 21. Qe1 {[%clk 0:01:16]}  Bc6 {[%clk 0:00:11]} 22. Nd5 {[%clk 0:01:14]}  Qd8 {[%clk 0:00:10]} 23. Nxe7+ {[%clk 0:01:14]}  Qxe7 {[%clk 0:00:11]} 24. Bxc6 {[%clk 0:01:10]}  Rxc6 {[%clk 0:00:12]} 25. Bc3 {[%clk 0:01:07]}  h6 {[%clk 0:00:11]} 26. Rd1 {[%clk 0:01:07]}  Nb6 {[%clk 0:00:11]} 27. Qe4 {[%clk 0:01:05]}  Qc7 {[%clk 0:00:09]} 28. Be5 {[%clk 0:01:02]}  Qc8 {[%clk 0:00:07]} 29. Qg4 {[%clk 0:01:00]}  Qf8 {[%clk 0:00:06]} 30. Rd8 {[%clk 0:00:57]}  g6 {[%clk 0:00:05]} 31. Rxf8+ {[%clk 0:00:55]}  Kxf8 {[%clk 0:00:05]} 32. a5 {[%clk 0:00:52]}  Nd5 {[%clk 0:00:06]} 33. c4 {[%clk 0:00:52]}  Ne7 {[%clk 0:00:05]} 34. Qd4 {[%clk 0:00:50]}  Rc8 {[%clk 0:00:04]} 35. Bd6 {[%clk 0:00:50]}  Ke8 {[%clk 0:00:04]} 36. Bxe7 {[%clk 0:00:46]}  Kxe7 {[%clk 0:00:05]} 37. Qa7+ {[%clk 0:00:44]}  Kf6 {[%clk 0:00:04]} 38. Qxa6 {[%clk 0:00:45]}  Rb8 {[%clk 0:00:04]} 39. Qd6 {[%clk 0:00:43]}  Rb3 {[%clk 0:00:04]} 40. a6 {[%clk 0:00:41]}  Rd3 {[%clk 0:00:00]} 41. Qxd3 {[%clk 0:00:41]} 1-0


[Site "https://www.chess.com"]